lending/lending_fUSD_20250808
["ID","MTS","AMOUNT","RATE_DAILY","PERIOD"]
[378016580,1754669450253,-1006.77,0.00018669,2]
[378016581,1754669450263,-1025.22,0.00018669,2]
[378016582,1754669450273,-1520.44,0.00018669,2]
[378016583,1754669450283,-640.9,0.00018669,2]
[378016584,1754669450293,-1142.56,0.00018669,2]
[378016585,1754669450303,-621.81,0.00018669,2]
[378016586,1754669450312,-500.0,0.00018669,2]
[378016587,1754669450322,-4083.5,0.00018669,2]
[378016588,1754669450332,-568.41,0.00018669,2]
[378016589,1754669450342,-524.35,0.00018669,2]
[378016590,1754669450352,-1661.41,0.00018669,2]
[378016591,1754669450362,-1298.89,0.00018669,2]
[378016592,1754669450371,-193.74747119,0.00018669,2]
[378016593,1754669450381,-400.0,0.00018669,2]
[378016594,1754669450391,-2454.24,0.00018669,2]
[378016595,1754669450401,-541.43,0.00018669,2]
[378016596,1754669450411,-400.0,0.00018669,2]
[378016597,1754669450421,-540.08,0.00018669,2]
[378016598,1754669450430,-831.09,0.00018669,2]
[378016599,1754669450440,-3674.86,0.00018669,2]
[378016600,1754669450450,-2558.52,0.00018669,2]
[378016601,1754669450460,-400.0,0.00018669,2]
[378016602,1754669450470,-770.46,0.00018669,2]
[378016603,1754669450480,-931.41,0.00018669,2]
[378016604,1754669450490,-1046.41,0.00018669,2]
[378016605,1754669450499,-2675.43,0.00018669,2]
[378016606,1754669450509,-825.25,0.00018669,2]
[378016607,1754669450518,-4347.41,0.00018669,2]
[378016608,1754669450528,-6608.06,0.00018669,2]
[378016609,1754669450539,-1150.05,0.00018669,2]
[378016610,1754669450549,-485.68,0.00018669,2]
[378016611,1754669450558,-29105.32441388,0.0001867,2]
[378016612,1754669450567,-500003.54503432,0.0001867,2]
[378016613,1754669450577,-515.46291329,0.0001867,2]
[378016614,1754669450586,-400.0,0.0001867,2]
[378016615,1754669450596,-400.0,0.0001867,2]
[378016616,1754669450605,-400.0,0.0001867,2]
[378016617,1754669450615,-400.0,0.0001867,2]
[378016618,1754669450625,-400.0,0.0001867,2]
[378016619,1754669450634,-400.0,0.0001867,2]
[378016620,1754669450643,-458.84,0.0001867,2]
[378016621,1754669450652,-1117.67,0.0001867,2]
[378016622,1754669450662,-400.0,0.0001867,2]
[378016623,1754669450672,-421.41,0.0001867,2]
[378016624,1754669450683,-401.17,0.0001867,2]
[378016625,1754669450693,-515.781575,0.0001867,2]
[378016626,1754669450705,-239.74102388,0.0001867,2]
[378016627,1754669450714,-515.38,0.0001867,2]
[378016628,1754669450724,-1006.42,0.0001867,2]
[378016629,1754669450735,-400.0,0.0001867,2]
[378016630,1754669450744,-400.0,0.0001867,2]
[378016631,1754669450754,-1001.32,0.0001867,2]
[378016632,1754669450764,-416.27,0.0001867,2]
[378016633,1754669450775,-400.0,0.0001867,2]
[378016634,1754669450785,-400.0,0.0001867,2]
[378016635,1754669450795,-400.0,0.0001867,2]
[378016636,1754669450806,-431.24,0.0001867,2]
[378016637,1754669450817,-400.0,0.0001867,2]
[378016638,1754669450827,-400.0,0.0001867,2]
[378016639,1754669450838,-389.94,0.0001867,2]
[378016640,1754669450848,-968.12,0.0001867,2]
[378016641,1754669450857,-400.0,0.0001867,2]
[378016642,1754669450868,-237.96346408,0.0001867,2]
[378016643,1754669450879,-400.0,0.0001867,2]
[378016644,1754669450888,-531.71,0.0001867,2]
[378016645,1754669450899,-400.0,0.0001867,2]
[378016646,1754669450908,-402.79,0.0001867,2]
[378016647,1754669450919,-439.34,0.0001867,2]
[378016648,1754669450931,-400.0,0.0001867,2]
[378016649,1754669450941,-400.0,0.0001867,2]
[378016650,1754669450951,-400.0,0.0001867,2]
[378016651,1754669450961,-839.4,0.0001867,2]
[378016652,1754669450971,-400.0,0.0001867,2]
[378016653,1754669450981,-368.97,0.0001867,2]
[378016654,1754669450995,-259.80579073,0.0001867,2]
[378016655,1754669451006,-413.42,0.0001867,2]
[378016656,1754669451016,-595.6,0.0001867,2]
[378016657,1754669451026,-400.0,0.0001867,2]
[378016658,1754669451036,-1000.0,0.0001867,2]
[378016659,1754669451046,-728.4,0.0001867,2]
[378016660,1754669451056,-400.0,0.0001867,2]
[378016661,1754669451065,-400.0,0.0001867,2]
[378016662,1754669451075,-457.06,0.0001867,2]
[378016663,1754669451085,-400.0,0.0001867,2]
[378016664,1754669451095,-400.0,0.0001867,2]
[378016665,1754669451106,-549.63950181,0.0001867,2]
[378016666,1754669451115,-426.5,0.0001867,2]
[378016667,1754669451126,-407.56,0.0001867,2]
[378016668,1754669451136,-400.0,0.0001867,2]
[378016669,1754669451146,-2865.41,0.0001867,2]
[378016670,1754669451156,-400.0,0.0001867,2]
[378016671,1754669451166,-400.0,0.0001867,2]
[378016672,1754669451177,-400.0,0.0001867,2]
[378016673,1754669451187,-400.0,0.0001867,2]
[378016674,1754669451197,-433.99,0.0001867,2]
[378016675,1754669451208,-1025.98,0.0001867,2]
[378016676,1754669451218,-400.0,0.0001867,2]
[378016677,1754669451228,-400.0,0.0001867,2]
[378016678,1754669451238,-460.05,0.0001867,2]
[378016679,1754669451248,-578.59,0.0001867,2]
[378016680,1754669451257,-400.0,0.0001867,2]
[378016681,1754669451267,-568.96,0.0001867,2]
[378016682,1754669451277,-400.0,0.0001867,2]
[378016683,1754669451287,-400.0,0.0001867,2]
[378016684,1754669451298,-400.0,0.0001867,2]
[378016685,1754669451307,-1746.19,0.0001867,2]
[378016686,1754669451317,-461.77,0.0001867,2]
[378016687,1754669451327,-400.0,0.0001867,2]
[378016688,1754669451335,-400.0,0.0001867,2]
[378016689,1754669451344,-868.12,0.0001867,2]
[378016690,1754669451354,-583.5,0.0001867,2]
[378016691,1754669451364,-400.0,0.0001867,2]
[378016692,1754669451374,-511.52,0.0001867,2]
[378016693,1754669451384,-976.11,0.0001867,2]
[378016694,1754669451394,-400.0,0.0001867,2]
[378016695,1754669451404,-782.74,0.0001867,2]
[378016696,1754669451414,-400.0,0.0001867,2]
[378016697,1754669451426,-528.81,0.0001867,2]
[378016698,1754669451435,-400.0,0.0001867,2]
[378016699,1754669451446,-400.0,0.0001867,2]
[378016700,1754669451456,-443.47,0.0001867,2]
[378016701,1754669451465,-400.0,0.0001867,2]
[378016702,1754669451475,-971.0,0.0001867,2]
[378016703,1754669451484,-400.0,0.0001867,2]
[378016704,1754669451494,-497.24,0.0001867,2]
[378016705,1754669451504,-1328.31,0.0001867,2]
[378016706,1754669451514,-400.0,0.0001867,2]
[378016707,1754669451523,-400.0,0.0001867,2]
[378016708,1754669451533,-492.66,0.0001867,2]
[378016709,1754669451543,-400.0,0.0001867,2]
[378016710,1754669451552,-400.0,0.0001867,2]
[378016711,1754669451562,-400.0,0.0001867,2]
[378016712,1754669451571,-522.1,0.0001867,2]
[378016713,1754669451582,-400.0,0.0001867,2]
[378016714,1754669451592,-536.48,0.0001867,2]
[378016715,1754669451602,-400.0,0.0001867,2]
[378016716,1754669451611,-400.0,0.0001867,2]
[378016717,1754669451622,-1060.74,0.0001867,2]
[378016718,1754669451632,-400.0,0.0001867,2]
[378016719,1754669451641,-400.0,0.0001867,2]
[378016720,1754669451651,-857.42,0.0001867,2]
[378016721,1754669451661,-400.0,0.0001867,2]
[378016722,1754669451673,-400.0,0.0001867,2]
[378016723,1754669451683,-1331.55,0.0001867,2]
[378016724,1754669451695,-625.23,0.0001867,2]
[378016725,1754669451705,-220.49,0.0001867,2]
[378016726,1754669451715,-400.0,0.0001867,2]
[378016727,1754669451724,-400.0,0.0001867,2]
[378016728,1754669451733,-425.8,0.0001867,2]
[378016729,1754669451743,-453.72,0.0001867,2]
[378016730,1754669451753,-400.0,0.0001867,2]
[378016731,1754669451764,-400.0,0.0001867,2]
[378016732,1754669451774,-596.31,0.0001867,2]
[378016733,1754669451785,-400.0,0.0001867,2]
[378016734,1754669451795,-400.0,0.0001867,2]
[378016735,1754669451805,-538.89,0.0001867,2]
[378016736,1754669451814,-402.64,0.0001867,2]
[378016737,1754669451824,-400.0,0.0001867,2]
[378016738,1754669451834,-400.0,0.0001867,2]
[378016739,1754669451844,-400.0,0.0001867,2]
[378016740,1754669451853,-1320.59,0.0001867,2]
[378016741,1754669451863,-400.0,0.0001867,2]
[378016742,1754669451873,-400.0,0.0001867,2]
[378016743,1754669451883,-400.0,0.0001867,2]
[378016744,1754669451893,-400.0,0.0001867,2]
[378016745,1754669451903,-400.0,0.0001867,2]
[378016746,1754669451912,-908.21,0.0001867,2]
[378016747,1754669451922,-400.0,0.0001867,2]
[378016748,1754669451933,-400.0,0.0001867,2]
[378016749,1754669451943,-896.71,0.0001867,2]
[378016750,1754669451954,-400.0,0.0001867,2]
[378016751,1754669451963,-400.0,0.0001867,2]
[378016752,1754669451973,-400.0,0.0001867,2]
[378016753,1754669451983,-400.0,0.0001867,2]
[378016754,1754669451991,-400.0,0.0001867,2]
[378016755,1754669452000,-400.0,0.0001867,2]
[378016756,1754669452010,-400.0,0.0001867,2]
[378016757,1754669452020,-400.0,0.0001867,2]
[378016758,1754669452031,-494.9,0.0001867,2]
[378016759,1754669452040,-420.23,0.0001867,2]
[378016760,1754669452050,-3958.88,0.0001867,2]
[378016761,1754669452060,-868.76,0.0001867,2]
[378016762,1754669452070,-400.0,0.0001867,2]
[378016763,1754669452080,-400.0,0.0001867,2]
[378016764,1754669452090,-400.0,0.0001867,2]
[378016765,1754669452099,-486.29,0.0001867,2]
[378016766,1754669452109,-400.0,0.0001867,2]
[378016767,1754669452119,-400.0,0.0001867,2]
[378016768,1754669452129,-400.0,0.0001867,2]
[378016769,1754669452138,-400.0,0.0001867,2]
[378016770,1754669452148,-400.0,0.0001867,2]
[378016771,1754669452158,-496.3,0.0001867,2]
[378016772,1754669452168,-544.9,0.0001867,2]
[378016773,1754669452179,-463.92,0.0001867,2]
[378016774,1754669452189,-525.45,0.0001867,2]
[378016775,1754669452200,-788.21,0.0001867,2]
[378016776,1754669452210,-1540.06,0.0001867,2]
[378016777,1754669452220,-400.0,0.0001867,2]
[378016778,1754669452230,-491.6,0.0001867,2]
[378016779,1754669452240,-400.0,0.0001867,2]
[378016780,1754669452250,-188.95,0.0001867,2]
[378016781,1754669452259,-539.68,0.0001867,2]
[378016782,1754669452269,-1676.13,0.0001867,2]
[378016783,1754669452278,-400.0,0.0001867,2]
[378016784,1754669452288,-406.38,0.0001867,2]
[378016785,1754669452297,-400.0,0.0001867,2]
[378016786,1754669452307,-1106.85,0.0001867,2]
[378016787,1754669452316,-400.0,0.0001867,2]
[378016788,1754669452326,-400.0,0.0001867,2]
[378016789,1754669452335,-1543.92,0.0001867,2]
[378016790,1754669452345,-1771.46,0.0001867,2]
[378016791,1754669452355,-1276.24,0.0001867,2]
[378016792,1754669452365,-1834.76,0.0001867,2]
[378016793,1754669452375,-526.59,0.0001867,2]
[378016794,1754669452646,-910.98,0.0001867,2]
[378016795,1754669452669,-400.0,0.0001867,2]
[378016796,1754669452680,-400.0,0.0001867,2]
[378016797,1754669452690,-404.83,0.0001867,2]
[378016798,1754669452703,-400.0,0.0001867,2]
[378016799,1754669452713,-1444.29,0.0001867,2]
[378016800,1754669452722,-400.0,0.0001867,2]
[378016801,1754669452732,-615.62,0.0001867,2]
[378016802,1754669452742,-400.0,0.0001867,2]
[378016803,1754669452752,-400.0,0.0001867,2]
[378016804,1754669452760,-1013.06,0.0001867,2]
[378016805,1754669452775,-400.0,0.0001867,2]
[378016806,1754669452784,-1214.78,0.0001867,2]
[378016807,1754669452793,-497.84,0.0001867,2]
[378016808,1754669452803,-410.74,0.0001867,2]
[378016809,1754669452812,-400.0,0.0001867,2]
[378016810,1754669452822,-532.42,0.0001867,2]
[378016811,1754669452832,-400.0,0.0001867,2]
[378016812,1754669452841,-400.0,0.0001867,2]
[378016813,1754669452851,-671.65,0.0001867,2]
[378016814,1754669452862,-3405.28,0.0001867,2]
[378016815,1754669452871,-460.1,0.0001867,2]
[378016816,1754669452880,-400.0,0.0001867,2]
[378016817,1754669452890,-420.14,0.0001867,2]
[378016818,1754669452900,-833.41,0.0001867,2]
[378016819,1754669452909,-174.71,0.0001867,2]
[378016820,1754669452919,-400.0,0.0001867,2]
[378016821,1754669452930,-1142.08,0.0001867,2]
[378016822,1754669452939,-400.0,0.0001867,2]
[378016823,1754669452949,-777.18,0.0001867,2]
[378016824,1754669452959,-400.0,0.0001867,2]
[378016825,1754669452968,-1516.44,0.0001867,2]
[378016826,1754669452978,-454.23,0.0001867,2]
[378016827,1754669452987,-400.0,0.0001867,2]
[378016828,1754669452996,-400.0,0.0001867,2]
[378016829,1754669453006,-1407.46,0.0001867,2]
[378016830,1754669453015,-422.1,0.0001867,2]
[378016831,1754669453025,-4624.2,0.0001867,2]
[378016832,1754669453034,-400.0,0.0001867,2]
[378016833,1754669453043,-1458.34,0.0001867,2]
[378016834,1754669453053,-400.0,0.0001867,2]
[378016835,1754669453063,-1220.89,0.0001867,2]
[378016836,1754669453072,-500.0,0.0001867,2]
[378016837,1754669453082,-686.63,0.0001867,2]
[378016838,1754669453092,-1283.29,0.0001867,2]
[378016839,1754669453102,-1271.52,0.0001867,2]
[378016840,1754669453111,-400.0,0.0001867,2]
[378016841,1754669453121,-400.0,0.0001867,2]
[378016842,1754669453130,-400.0,0.0001867,2]
[378016843,1754669453140,-1531.74,0.0001867,2]
[378016844,1754669453150,-400.0,0.0001867,2]
[378016845,1754669453159,-400.0,0.0001867,2]
[378016846,1754669453169,-400.0,0.0001867,2]
[378016847,1754669453180,-400.0,0.0001867,2]
[378016848,1754669453189,-1320.06,0.0001867,2]
[378016849,1754669453198,-466.82,0.0001867,2]
[378016850,1754669453208,-1421.75,0.0001867,2]
[378016851,1754669453218,-455.48,0.0001867,2]
[378016852,1754669453228,-894.63,0.0001867,2]
[378016853,1754669453238,-400.0,0.0001867,2]
[378016854,1754669453248,-400.0,0.0001867,2]
[378016855,1754669453258,-995.6,0.0001867,2]
[378016856,1754669453267,-400.0,0.0001867,2]
[378016857,1754669453276,-675.46,0.0001867,2]
[378016858,1754669453286,-943.62,0.0001867,2]
[378016859,1754669453295,-3181.7,0.0001867,2]
[378016860,1754669453305,-400.0,0.0001867,2]
[378016861,1754669453315,-500.0,0.0001867,2]
[378016862,1754669453324,-577.69,0.0001867,2]
[378016863,1754669453334,-400.0,0.0001867,2]
[378016864,1754669453344,-414.17,0.0001867,2]
[378016865,1754669453353,-474.82,0.0001867,2]
[378016866,1754669453363,-400.0,0.0001867,2]
[378016867,1754669453372,-3907.01,0.0001867,2]
[378016868,1754669453382,-362.99119782,0.0001867,2]
[378016869,1754669453391,-400.0,0.0001867,2]
[378016870,1754669453400,-400.0,0.0001867,2]
[378016871,1754669453410,-400.0,0.0001867,2]
[378016872,1754669453420,-493.07,0.0001867,2]
[378016873,1754669453431,-447.25,0.0001867,2]
[378016874,1754669453440,-4881.55,0.0001867,2]
[378016875,1754669453450,-400.0,0.0001867,2]
[378016876,1754669453460,-400.0,0.0001867,2]
[378016877,1754669453470,-3961.85,0.0001867,2]
[378016878,1754669453480,-400.0,0.0001867,2]
[378016879,1754669453489,-500.0,0.0001867,2]
[378016880,1754669453498,-607.19,0.0001867,2]
[378016881,1754669453508,-400.0,0.0001867,2]
[378016882,1754669453518,-1995.27,0.0001867,2]
[378016883,1754669453527,-400.0,0.0001867,2]
[378016884,1754669453537,-400.0,0.0001867,2]
[378016885,1754669453546,-2151.79,0.0001867,2]
[378016886,1754669453556,-1748.15,0.0001867,2]
[378016887,1754669453566,-402.82663914,0.0001867,2]
[378016888,1754669453576,-1071.34,0.0001867,2]
[378016889,1754669453586,-400.0,0.0001867,2]
[378016890,1754669453597,-406.16240305,0.0001867,2]
[378016891,1754669453607,-5556.86,0.0001867,2]
[378016892,1754669453616,-417.13304084,0.0001867,2]
[378016893,1754669453625,-776.47,0.0001867,2]
[378016894,1754669453635,-400.0,0.0001867,2]
[378016895,1754669453644,-4368.67,0.0001867,2]
[378016896,1754669453653,-400.0,0.0001867,2]
[378016897,1754669453663,-509.28322581,0.0001867,2]
[378016898,1754669453673,-454.28,0.0001867,2]
[378016899,1754669453685,-455.24,0.0001867,2]
[378016900,1754669453697,-400.0,0.0001867,2]
[378016901,1754669453707,-402.49101102,0.0001867,2]
[378016902,1754669453716,-400.0,0.0001867,2]
[378016903,1754669453726,-572.22,0.0001867,2]
[378016904,1754669453737,-552.11,0.0001867,2]
[378016905,1754669453747,-5326.54,0.0001867,2]
[378016906,1754669453756,-1655.65,0.0001867,2]
[378016907,1754669453765,-400.0,0.0001867,2]
[378016908,1754669453776,-1353.03,0.0001867,2]
[378016909,1754669453785,-400.0,0.0001867,2]
[378016910,1754669453795,-400.0,0.0001867,2]
[378016911,1754669453804,-1787.09,0.0001867,2]
[378016912,1754669453813,-437.4,0.0001867,2]
[378016913,1754669453822,-400.0,0.0001867,2]
[378016914,1754669453832,-1818.29,0.0001867,2]
[378016915,1754669453842,-448.37,0.0001867,2]
[378016916,1754669453851,-400.0,0.0001867,2]
[378016917,1754669453861,-481.97,0.0001867,2]
[378016918,1754669453871,-401.9413613,0.0001867,2]
[378016919,1754669453881,-1169.93,0.0001867,2]
[378016920,1754669453891,-3083.31,0.0001867,2]
[378016921,1754669453900,-2127.79,0.0001867,2]
[378016922,1754669453910,-400.0,0.0001867,2]
[378016923,1754669453919,-509.83,0.0001867,2]
[378016924,1754669453932,-400.0,0.0001867,2]
[378016925,1754669453941,-400.0,0.0001867,2]
[378016926,1754669453951,-836.42,0.0001867,2]
[378016927,1754669453960,-740.05,0.0001867,2]
[378016928,1754669453970,-407.28630533,0.0001867,2]
[378016929,1754669453979,-521.67,0.0001867,2]
[378016930,1754669453989,-1017.06,0.0001867,2]
[378016931,1754669453999,-400.0,0.0001867,2]
[378016932,1754669454009,-3318.81,0.0001867,2]
[378016933,1754669454019,-406.15166839,0.0001867,2]
[378016934,1754669454029,-413.50387201,0.0001867,2]
[378016935,1754669454039,-1132.27,0.0001867,2]
[378016936,1754669454049,-1001.22,0.0001867,2]
[378016937,1754669454058,-501.43,0.0001867,2]
[378016938,1754669454068,-633.86,0.0001867,2]
[378016939,1754669454078,-549.18,0.0001867,2]
[378016940,1754669454088,-400.0,0.0001867,2]
[378016941,1754669454098,-400.0,0.0001867,2]
[378016942,1754669454107,-471.36,0.0001867,2]
[378016943,1754669454117,-1748.49,0.0001867,2]
[378016944,1754669454126,-862.04,0.0001867,2]
[378016945,1754669454136,-400.0,0.0001867,2]
[378016946,1754669454145,-400.0,0.0001867,2]
[378016947,1754669454154,-2373.25,0.0001867,2]
[378016948,1754669454163,-1280.13,0.0001867,2]
[378016949,1754669454174,-1010.24,0.0001867,2]
[378016950,1754669454184,-175.0,0.0001867,2]
[378016951,1754669454194,-1499.55,0.0001867,2]
[378016952,1754669454204,-400.0,0.0001867,2]
[378016953,1754669454213,-402.13457945,0.0001867,2]
[378016954,1754669454223,-1166.4,0.0001867,2]
[378016955,1754669454232,-660.66,0.0001867,2]
[378016956,1754669454242,-487.79,0.0001867,2]
[378016957,1754669454251,-7523.23,0.0001867,2]
[378016958,1754669454261,-1342.86,0.0001867,2]
[378016959,1754669454271,-1524.08,0.0001867,2]
[378016960,1754669454280,-591.38,0.0001867,2]
[378016961,1754669454290,-400.0,0.0001867,2]
[378016962,1754669454299,-400.0,0.0001867,2]
[378016963,1754669454309,-439.65,0.0001867,2]
[378016964,1754669454318,-400.0,0.0001867,2]
[378016965,1754669454328,-809.05,0.0001867,2]
[378016966,1754669454338,-400.0,0.0001867,2]
[378016967,1754669454347,-5829.92,0.0001867,2]
[378016968,1754669454357,-1761.37,0.0001867,2]
[378016969,1754669454367,-338.4214268,0.0001867,2]
[378016970,1754669454377,-400.0,0.0001867,2]
[378016971,1754669454386,-480.61,0.0001867,2]
[378016972,1754669454396,-400.0,0.0001867,2]
[378016973,1754669454405,-1610.05,0.0001867,2]
[378016974,1754669454415,-400.0,0.0001867,2]
[378016975,1754669454425,-400.0,0.0001867,2]
[378016976,1754669454434,-755.11,0.0001867,2]
[378016977,1754669454444,-400.0,0.0001867,2]
[378016978,1754669454454,-643.37,0.0001867,2]
[378016979,1754669454463,-764.46,0.0001867,2]
[378016980,1754669454472,-985.59,0.0001867,2]
[378016981,1754669454482,-4533.75,0.0001867,2]
[378016982,1754669454492,-543.79,0.0001867,2]
[378016983,1754669454501,-500.0,0.0001867,2]
[378016984,1754669454511,-1461.07,0.0001867,2]
[378016985,1754669454520,-489.59037858,0.0001867,2]
[378016986,1754669454529,-401.75914511,0.0001867,2]
[378016987,1754669454538,-577.86,0.0001867,2]
[378016988,1754669454548,-1394.99,0.0001867,2]
[378016989,1754669454557,-400.0,0.0001867,2]
[378016990,1754669454567,-400.0,0.0001867,2]
[378016991,1754669454578,-400.0,0.0001867,2]
[378016992,1754669454587,-3292.99,0.0001867,2]
[378016993,1754669454596,-745.45,0.0001867,2]
[378016994,1754669454606,-420.20507559,0.0001867,2]
[378016995,1754669454615,-630.01,0.0001867,2]
[378016996,1754669454625,-591.75,0.0001867,2]
[378016997,1754669454634,-400.0,0.0001867,2]
[378016998,1754669454644,-400.0,0.0001867,2]
[378016999,1754669454653,-400.0,0.0001867,2]
[378017000,1754669454663,-571.59,0.0001867,2]
[378017001,1754669454673,-400.58856298,0.0001867,2]
[378017002,1754669454683,-1458.03,0.0001867,2]
[378017003,1754669454696,-1230.51,0.0001867,2]
[378017004,1754669454705,-400.0,0.0001867,2]
[378017005,1754669454715,-922.39,0.0001867,2]
[378017006,1754669454724,-400.0,0.0001867,2]
[378017007,1754669454734,-5116.24,0.0001867,2]
[378017008,1754669454744,-161.0,0.0001867,2]
[378017009,1754669454753,-400.0,0.0001867,2]
[378017010,1754669454764,-1077.25,0.0001867,2]
[378017011,1754669454773,-1973.55,0.0001867,2]
[378017012,1754669454783,-888.02,0.0001867,2]
[378017013,1754669454792,-400.0,0.0001867,2]
[378017014,1754669454801,-1296.8,0.0001867,2]
[378017015,1754669454811,-510.38,0.0001867,2]
[378017016,1754669454820,-1075.57,0.0001867,2]
[378017017,1754669454830,-225.56622069,0.0001867,2]
[378017018,1754669454839,-572.6,0.0001867,2]
[378017019,1754669454849,-5597.06,0.0001867,2]
[378017020,1754669454859,-638.9,0.0001867,2]
[378017021,1754669454869,-400.0,0.0001867,2]
[378017022,1754669454878,-400.0,0.0001867,2]
[378017023,1754669454888,-400.0,0.0001867,2]
[378017024,1754669454898,-400.0,0.0001867,2]
[378017025,1754669454907,-450.68,0.0001867,2]
[378017026,1754669454917,-533.21,0.0001867,2]
[378017027,1754669454928,-3790.94,0.0001867,2]
[378017028,1754669454938,-357.40104499,0.0001867,2]
[378017029,1754669454947,-663.4,0.0001867,2]
[378017030,1754669454957,-3288.41,0.0001867,2]
[378017031,1754669455043,-3195.32,0.0001867,2]
[378017032,1754669455052,-400.0,0.0001867,2]
[378017033,1754669455062,-410.16,0.0001867,2]
[378017034,1754669455071,-526.43,0.0001867,2]
[378017035,1754669455080,-407.28502337,0.0001867,2]
[378017036,1754669455089,-400.0,0.00018671,2]
[378017037,1754669455098,-158.98528625,0.00018671,2]
[378017038,1754669455107,-200.0,0.00018671,2]
[378017039,1754669455117,-157.72153449,0.00018671,2]
[378017040,1754669455126,-400.0,0.00018671,2]
[378017041,1754669455136,-400.0,0.00018671,2]
[378017042,1754669455146,-400.0,0.00018671,2]
[378017043,1754669455155,-408.84,0.00018671,2]
[378017044,1754669455164,-400.0,0.00018671,2]
[378017045,1754669455173,-400.0,0.00018671,2]
[378017046,1754669455183,-400.0,0.00018671,2]
[378017047,1754669455192,-400.0,0.00018671,2]
[378017048,1754669455202,-400.0,0.00018671,2]
[378017049,1754669455211,-405.60570251,0.00018671,2]
[378017050,1754669455220,-400.0,0.00018671,2]
[378017051,1754669455230,-520.89,0.00018671,2]
[378017052,1754669455239,-400.0,0.00018671,2]
[378017053,1754669455248,-578.65,0.00018671,2]
[378017054,1754669455257,-400.0,0.00018671,2]
[378017055,1754669455267,-400.0,0.00018671,2]
[378017056,1754669455276,-400.0,0.00018671,2]
[378017057,1754669455285,-400.0,0.00018671,2]
[378017058,1754669455295,-400.0,0.00018671,2]
[378017059,1754669455304,-400.0,0.00018671,2]
[378017060,1754669455314,-438.64,0.00018671,2]
[378017061,1754669455323,-400.0,0.00018671,2]
[378017062,1754669455333,-400.0,0.00018671,2]
[378017063,1754669455342,-400.0,0.00018671,2]
[378017064,1754669455351,-549.00802563,0.00018671,2]
[378017065,1754669455360,-431.02,0.00018671,2]
[378017066,1754669455369,-453.32,0.00018671,2]
[378017067,1754669455379,-528.12,0.00018671,2]
[378017068,1754669455388,-400.0,0.00018671,2]
[378017069,1754669455397,-400.0,0.00018671,2]
[378017070,1754669455407,-400.0,0.00018671,2]
[378017071,1754669455416,-414.55,0.00018671,2]
[378017072,1754669455426,-501.96,0.00018671,2]
[378017073,1754669455435,-502.35,0.00018671,2]
[378017074,1754669455445,-400.0,0.00018671,2]
[378017075,1754669455455,-400.0,0.00018671,2]
[378017076,1754669455464,-400.0,0.00018671,2]
[378017077,1754669455474,-156.42,0.00018671,2]
[378017078,1754669455484,-400.0,0.00018671,2]
[378017079,1754669455493,-205.08,0.00018671,2]